[Event "Early-Titled-Tuesday-Blitz-October-17-2023"]
[Site "Chess.com"]
[Date "2023.10.17"]
[Round "2"]
[White "secretsuperstar7"]
[Black "dontcatchmeifyoucant"]
[Result "1/2-1/2"]
[WhiteElo "2449"]
[BlackElo "2270"]
[TimeControl "180+1"]
[EndTime "8:18:47 PDT"]
[Termination "Game drawn by repetition"]

1. c4 {[%clk 0:02:55.6]} 1... e5 {[%clk 0:02:56]} 2. Nc3 {[%clk 0:02:54.5]} 2...
Nf6 {[%clk 0:02:55.4]} 3. g3 {[%clk 0:02:52.8]} 3... Bb4 {[%clk 0:02:55.2]} 4.
Bg2 {[%clk 0:02:52.8]} 4... O-O {[%clk 0:02:54]} 5. Nf3 {[%clk 0:02:52.7]} 5...
Nc6 {[%clk 0:02:51.5]} 6. O-O {[%clk 0:02:51.2]} 6... Re8 {[%clk 0:02:39.6]} 7.
a3 {[%clk 0:02:46.4]} 7... Bxc3 {[%clk 0:02:37.9]} 8. dxc3 {[%clk 0:02:45.9]}
8... e4 {[%clk 0:02:30.8]} 9. Nd4 {[%clk 0:02:44.7]} 9... Ne5 {[%clk 0:02:23.9]}
10. b3 {[%clk 0:02:43.6]} 10... d6 {[%clk 0:02:23.4]} 11. Qc2 {[%clk 0:02:40.4]}
11... c5 {[%clk 0:02:09.8]} 12. Bg5 {[%clk 0:02:16.9]} 12... cxd4 {[%clk
0:01:53.3]} 13. cxd4 {[%clk 0:02:15.1]} 13... Nc6 {[%clk 0:01:49.3]} 14. Rad1
{[%clk 0:02:11.2]} 14... h6 {[%clk 0:01:46.2]} 15. Bc1 {[%clk 0:02:05.2]} 15...
d5 {[%clk 0:01:42.5]} 16. f3 {[%clk 0:02:00.2]} 16... Bf5 {[%clk 0:01:38.9]} 17.
Qb2 {[%clk 0:01:52.8]} 17... exf3 {[%clk 0:01:33.6]} 18. exf3 {[%clk 0:01:51.4]}
18... Rc8 {[%clk 0:01:26]} 19. g4 {[%clk 0:01:48.5]} 19... Bg6 {[%clk 0:01:25]}
20. Bh3 {[%clk 0:01:42.6]} 20... Ra8 {[%clk 0:01:07.5]} 21. Kh1 {[%clk
0:01:37.9]} 21... Qb6 {[%clk 0:00:59.9]} 22. Qc3 {[%clk 0:01:32.9]} 22... Na5
{[%clk 0:00:53.9]} 23. c5 {[%clk 0:01:19.7]} 23... Qc7 {[%clk 0:00:46.3]} 24.
Bd2 {[%clk 0:01:18.1]} 24... Nc6 {[%clk 0:00:45.8]} 25. b4 {[%clk 0:01:18.3]}
25... a6 {[%clk 0:00:45.7]} 26. a4 {[%clk 0:01:18.3]} 26... Re2 {[%clk
0:00:39.6]} 27. Bg2 {[%clk 0:01:09.1]} 27... Rae8 {[%clk 0:00:36.4]} 28. b5
{[%clk 0:01:07.2]} 28... axb5 {[%clk 0:00:34.5]} 29. axb5 {[%clk 0:01:07]} 29...
Rxg2 {[%clk 0:00:25.1]} 30. Kxg2 {[%clk 0:01:04.7]} 30... Re2+ {[%clk
0:00:25.7]} 31. Rf2 {[%clk 0:01:03.4]} 31... Rxf2+ {[%clk 0:00:26.3]} 32. Kxf2
{[%clk 0:01:03.2]} 32... Qxh2+ {[%clk 0:00:27]} 33. Kf1 {[%clk 0:01:02.6]} 33...
Nb4 {[%clk 0:00:19.1]} 34. Be1 {[%clk 0:00:59]} 34... Bc2 {[%clk 0:00:12.2]} 35.
Rd2 {[%clk 0:00:55.4]} 35... Qh1+ {[%clk 0:00:11.7]} 36. Kf2 {[%clk 0:00:51.3]}
36... Nd3+ {[%clk 0:00:10.2]} 37. Rxd3 {[%clk 0:00:51.2]} 37... Bxd3 {[%clk
0:00:09.9]} 38. Qxd3 {[%clk 0:00:51.3]} 38... h5 {[%clk 0:00:09.6]} 39. g5
{[%clk 0:00:45.7]} 39... Qh2+ {[%clk 0:00:09.3]} 40. Kf1 {[%clk 0:00:44.3]}
40... Qh1+ {[%clk 0:00:08.4]} 41. Kf2 {[%clk 0:00:42.3]} 41... Qh2+ {[%clk
0:00:08.7]} 42. Kf1 {[%clk 0:00:42.5]} 42... Qh1+ {[%clk 0:00:09]} 43. Kf2
{[%clk 0:00:42.9]} 1/2-1/2

[Event "Early-Titled-Tuesday-Blitz-October-17-2023"]
[Site "Chess.com"]
[Date "2023.10.17"]
[Round "2"]
[White "Let_it_be_1"]
[Black "OLDTERMINATOR"]
[Result "1-0"]
[WhiteElo "2631"]
[BlackElo "1638"]
[TimeControl "180+1"]
[EndTime "8:18:49 PDT"]
[Termination "Let_it_be_1 won on time"]

1. e4 {[%clk 0:02:59.3]} 1... e6 {[%clk 0:02:58.8]} 2. d4 {[%clk 0:02:58.7]}
2... d5 {[%clk 0:02:58.7]} 3. Nd2 {[%clk 0:02:58.6]} 3... Nf6 {[%clk 0:02:56]}
4. e5 {[%clk 0:02:58.2]} 4... Nfd7 {[%clk 0:02:55.8]} 5. Bd3 {[%clk 0:02:58.4]}
5... c5 {[%clk 0:02:56.3]} 6. c3 {[%clk 0:02:58.8]} 6... Nc6 {[%clk 0:02:56.2]}
7. Ne2 {[%clk 0:02:58.9]} 7... Qb6 {[%clk 0:02:54.6]} 8. Nf3 {[%clk 0:02:58.1]}
8... cxd4 {[%clk 0:02:53.3]} 9. cxd4 {[%clk 0:02:57.9]} 9... Be7 {[%clk
0:02:53.3]} 10. O-O {[%clk 0:02:57.4]} 10... f6 {[%clk 0:02:53.4]} 11. exf6
{[%clk 0:02:52.2]} 11... Nxf6 {[%clk 0:02:50.6]} 12. a3 {[%clk 0:02:43.4]} 12...
a5 {[%clk 0:02:43.7]} 13. Nc3 {[%clk 0:02:34.2]} 13... Bd7 {[%clk 0:02:42.2]}
14. Bf4 {[%clk 0:02:27.5]} 14... O-O {[%clk 0:02:29.5]} 15. Nb5 {[%clk
0:02:18.3]} 15... Rac8 {[%clk 0:02:22.7]} 16. Qe2 {[%clk 0:01:54.6]} 16... Ne4
{[%clk 0:02:10.8]} 17. Bg3 {[%clk 0:01:11.1]} 17... Nxg3 {[%clk 0:02:02.5]} 18.
hxg3 {[%clk 0:01:10.9]} 18... Bf6 {[%clk 0:01:15.5]} 19. Rad1 {[%clk 0:01:09.7]}
19... Kh8 {[%clk 0:01:11.4]} 20. g4 {[%clk 0:00:52.7]} 20... h6 {[%clk
0:00:49.5]} 21. g5 {[%clk 0:00:52.5]} 21... Bxd4 {[%clk 0:00:16.8]} 22. gxh6
{[%clk 0:00:39.2]} 22... Bf6 {[%clk 0:00:09]} 23. hxg7+ {[%clk 0:00:30.9]} 23...
Kxg7 {[%clk 0:00:06.7]} 24. Bb1 {[%clk 0:00:17.5]} 24... Rh8 {[%clk 0:00:03.9]}
25. Qd3 {[%clk 0:00:16.2]} 25... Rh6 {[%clk 0:00:02.9]} 26. g3 {[%clk
0:00:13.9]} 26... Be8 {[%clk 0:00:01.7]} 27. Nd6 {[%clk 0:00:09.9]} 1-0

[Event "Early-Titled-Tuesday-Blitz-October-17-2023"]
[Site "Chess.com"]
[Date "2023.10.17"]
[Round "2"]
[White "brm72"]
[Black "stollenmonster"]
[Result "0-1"]
[WhiteElo "2501"]
[BlackElo "2807"]
[TimeControl "180+1"]
[EndTime "8:18:54 PDT"]
[Termination "stollenmonster won by resignation"]

1. e4 {[%clk 0:03:00.9]} 1... c5 {[%clk 0:02:59.9]} 2. Nf3 {[%clk 0:03:00.8]}
2... Nf6 {[%clk 0:03:00.4]} 3. e5 {[%clk 0:03:00.4]} 3... Nd5 {[%clk 0:03:00.7]}
4. Nc3 {[%clk 0:02:44.4]} 4... e6 {[%clk 0:03:00.3]} 5. Nxd5 {[%clk 0:02:40.3]}
5... exd5 {[%clk 0:03:01.2]} 6. d4 {[%clk 0:02:40.5]} 6... Nc6 {[%clk
0:03:01.5]} 7. c3 {[%clk 0:02:33.3]} 7... d6 {[%clk 0:02:59.1]} 8. Bf4 {[%clk
0:02:30.3]} 8... Be7 {[%clk 0:02:57.6]} 9. Bd3 {[%clk 0:02:28.8]} 9... O-O
{[%clk 0:02:57.1]} 10. h3 {[%clk 0:02:28.8]} 10... cxd4 {[%clk 0:02:54.2]} 11.
cxd4 {[%clk 0:02:27.5]} 11... dxe5 {[%clk 0:02:54.1]} 12. Nxe5 {[%clk
0:02:18.1]} 12... Nxe5 {[%clk 0:02:54.1]} 13. dxe5 {[%clk 0:02:11.7]} 13... Bb4+
{[%clk 0:02:53.7]} 14. Bd2 {[%clk 0:02:11.5]} 14... Qe7 {[%clk 0:02:54.4]} 15.
Bxb4 {[%clk 0:02:07.1]} 15... Qxb4+ {[%clk 0:02:55.3]} 16. Qd2 {[%clk
0:02:07.3]} 16... Qe7 {[%clk 0:02:55]} 17. Qe3 {[%clk 0:01:52.5]} 17... f6
{[%clk 0:02:52.9]} 18. exf6 {[%clk 0:01:48.7]} 18... Qb4+ {[%clk 0:02:52.5]} 19.
Qd2 {[%clk 0:01:28.2]} 19... Re8+ {[%clk 0:02:51.1]} 20. Kd1 {[%clk 0:01:22.8]}
20... Qf8 {[%clk 0:02:48.9]} 21. fxg7 {[%clk 0:01:18.5]} 21... Qxg7 {[%clk
0:02:48.8]} 22. Re1 {[%clk 0:01:17.6]} 22... Bd7 {[%clk 0:02:45]} 23. g4 {[%clk
0:01:11.5]} 23... Ba4+ {[%clk 0:02:32.6]} 24. Bc2 {[%clk 0:01:09.8]} 24... Qxb2
{[%clk 0:02:26.7]} 25. Rc1 {[%clk 0:00:55.2]} 25... Bxc2+ {[%clk 0:02:08.7]} 26.
Rxc2 {[%clk 0:00:53.1]} 26... Rxe1+ {[%clk 0:01:55.8]} 27. Kxe1 {[%clk 0:00:54]}
27... Qe5+ {[%clk 0:01:54.4]} 28. Qe3 {[%clk 0:00:45.1]} 28... Qf6 {[%clk
0:01:31.6]} 29. Kf1 {[%clk 0:00:42.2]} 29... Rf8 {[%clk 0:01:08.8]} 30. Kg2
{[%clk 0:00:40.8]} 30... d4 {[%clk 0:01:04]} 31. Qe4 {[%clk 0:00:37.4]} 31... b5
{[%clk 0:01:03.6]} 32. Rd2 {[%clk 0:00:36.2]} 32... Rd8 {[%clk 0:01:01.3]} 33.
Rd3 {[%clk 0:00:31]} 33... b4 {[%clk 0:00:59.8]} 34. Rf3 {[%clk 0:00:30.5]}
34... Qd6 {[%clk 0:00:58.3]} 35. Qd3 {[%clk 0:00:27.9]} 35... a5 {[%clk
0:00:53]} 36. Rf5 {[%clk 0:00:28]} 36... Qc6+ {[%clk 0:00:52.3]} 37. Kh2 {[%clk
0:00:27.4]} 37... a4 {[%clk 0:00:41.5]} 38. Rg5+ {[%clk 0:00:21.5]} 38... Kh8
{[%clk 0:00:41.2]} 39. Rh5 {[%clk 0:00:21.6]} 39... Qd6+ {[%clk 0:00:41.2]} 40.
Kg2 {[%clk 0:00:21.8]} 40... Qc6+ {[%clk 0:00:40.4]} 41. Kg3 {[%clk 0:00:21.9]}
41... Qc3 {[%clk 0:00:33.2]} 42. Rxh7+ {[%clk 0:00:19.5]} 42... Kg8 {[%clk
0:00:33.1]} 43. Qxc3 {[%clk 0:00:19.8]} 43... bxc3 {[%clk 0:00:29.2]} 44. Rc7
{[%clk 0:00:18.9]} 44... d3 {[%clk 0:00:29.8]} 45. Rxc3 {[%clk 0:00:18.4]} 45...
d2 {[%clk 0:00:30.2]} 0-1

[Event "Early-Titled-Tuesday-Blitz-October-17-2023"]
[Site "Chess.com"]
[Date "2023.10.17"]
[Round "2"]
[White "zimmm36"]
[Black "abc_xyz4744"]
[Result "1-0"]
[WhiteElo "2713"]
[BlackElo "2381"]
[TimeControl "180+1"]
[EndTime "8:18:54 PDT"]
[Termination "zimmm36 won by resignation"]

1. e4 {[%clk 0:03:00.9]} 1... c5 {[%clk 0:02:54.7]} 2. Nf3 {[%clk 0:03:01.2]}
2... g6 {[%clk 0:02:50.4]} 3. d4 {[%clk 0:03:02.1]} 3... cxd4 {[%clk 0:02:51.3]}
4. Qxd4 {[%clk 0:03:02.4]} 4... Nf6 {[%clk 0:02:51]} 5. Nc3 {[%clk 0:03:02.5]}
5... Nc6 {[%clk 0:02:51]} 6. Qe3 {[%clk 0:03:02.8]} 6... d6 {[%clk 0:02:47.8]}
7. h3 {[%clk 0:03:03.3]} 7... Bg7 {[%clk 0:02:47.4]} 8. Be2 {[%clk 0:03:03.2]}
8... O-O {[%clk 0:02:47.3]} 9. O-O {[%clk 0:03:03.1]} 9... a6 {[%clk 0:02:43.6]}
10. Nd5 {[%clk 0:03:00.9]} 10... Nxd5 {[%clk 0:02:40.7]} 11. exd5 {[%clk
0:03:01.8]} 11... Ne5 {[%clk 0:02:41.3]} 12. Nd4 {[%clk 0:02:59.8]} 12... b5
{[%clk 0:02:36]} 13. f4 {[%clk 0:02:59.4]} 13... Nc4 {[%clk 0:02:20.4]} 14. Bxc4
{[%clk 0:02:58.9]} 14... bxc4 {[%clk 0:02:21.3]} 15. Nc6 {[%clk 0:02:59.8]}
15... Qc7 {[%clk 0:02:21.4]} 16. Qxe7 {[%clk 0:02:57.9]} 16... Qb6+ {[%clk
0:02:11.2]} 17. Kh2 {[%clk 0:02:40.3]} 17... Bf5 {[%clk 0:01:52.7]} 18. Qxd6
{[%clk 0:02:38.6]} 18... Kh8 {[%clk 0:01:18.1]} 19. c3 {[%clk 0:02:30.4]} 19...
Rfd8 {[%clk 0:01:05.8]} 20. Qb4 {[%clk 0:02:27]} 20... Qxb4 {[%clk 0:01:03.5]}
21. Nxb4 {[%clk 0:02:27.9]} 21... a5 {[%clk 0:01:04.1]} 22. Nc6 {[%clk
0:02:28.1]} 22... Rxd5 {[%clk 0:01:04.3]} 23. Be3 {[%clk 0:02:28.7]} 23... Re8
{[%clk 0:01:02.3]} 24. Ne5 {[%clk 0:02:27.1]} 24... f6 {[%clk 0:00:52.5]} 25.
Nxc4 {[%clk 0:02:27]} 25... Bd3 {[%clk 0:00:51.7]} 26. Nb6 {[%clk 0:02:23.9]}
26... Rb5 {[%clk 0:00:47.2]} 27. Rfe1 {[%clk 0:02:18.4]} 27... Rxb2 {[%clk
0:00:42]} 28. Bd4 {[%clk 0:02:17.1]} 28... Be4 {[%clk 0:00:39.3]} 29. Rg1 {[%clk
0:02:03.2]} 29... f5 {[%clk 0:00:39]} 30. Nc4 {[%clk 0:02:02.5]} 30... Rc2
{[%clk 0:00:32.8]} 31. Ne5 {[%clk 0:02:01]} 31... Kg8 {[%clk 0:00:25.1]} 32. a4
{[%clk 0:01:58.4]} 32... Bh6 {[%clk 0:00:20.3]} 33. Kg3 {[%clk 0:01:57]} 33...
Rc8 {[%clk 0:00:13.2]} 34. Ra3 {[%clk 0:01:52.6]} 34... Bf8 {[%clk 0:00:12.3]}
35. Rb3 {[%clk 0:01:52.7]} 35... Bd5 {[%clk 0:00:12.7]} 36. Rb5 {[%clk
0:01:52.3]} 36... Be4 {[%clk 0:00:09.8]} 37. Nd7 {[%clk 0:01:52.5]} 37... Bh6
{[%clk 0:00:07.7]} 38. Nf6+ {[%clk 0:01:48.9]} 38... Kf7 {[%clk 0:00:07]} 39.
Nxe4 {[%clk 0:01:49.8]} 39... fxe4 {[%clk 0:00:07]} 40. Re5 {[%clk 0:01:49.7]}
40... Bg7 {[%clk 0:00:06.8]} 41. Rxe4 {[%clk 0:01:49.8]} 41... Bxd4 {[%clk
0:00:07.4]} 42. Rxd4 {[%clk 0:01:50.4]} 42... R8xc3+ {[%clk 0:00:07.6]} 43. Kh4
{[%clk 0:01:50.7]} 43... Rc4 {[%clk 0:00:07.5]} 44. Rxc4 {[%clk 0:01:50.3]}
44... Rxc4 {[%clk 0:00:07.4]} 45. g3 {[%clk 0:01:51.2]} 45... Rxa4 {[%clk
0:00:07.4]} 46. Rc1 {[%clk 0:01:51.3]} 46... Kf6 {[%clk 0:00:05.3]} 47. Rc6+
{[%clk 0:01:51.1]} 47... Kf5 {[%clk 0:00:05.8]} 48. Rc5+ {[%clk 0:01:45.3]}
48... Kf6 {[%clk 0:00:06]} 49. Kg4 {[%clk 0:01:45.9]} 49... h5+ {[%clk 0:00:06]}
50. Kh4 {[%clk 0:01:45.3]} 50... Ra3 {[%clk 0:00:06.9]} 51. g4 {[%clk
0:01:42.9]} 51... hxg4 {[%clk 0:00:06.1]} 52. hxg4 {[%clk 0:01:43.8]} 52... Ra4
{[%clk 0:00:06.6]} 53. Rc6+ {[%clk 0:01:43.9]} 53... Kg7 {[%clk 0:00:06.7]} 54.
Kg5 {[%clk 0:01:44.5]} 54... Kf7 {[%clk 0:00:05.5]} 55. Rf6+ {[%clk 0:01:44.6]}
55... Ke7 {[%clk 0:00:04.4]} 56. Rxg6 {[%clk 0:01:44.9]} 56... Rb4 {[%clk
0:00:05.1]} 57. Ra6 {[%clk 0:01:44.6]} 57... Rb5+ {[%clk 0:00:05.6]} 58. f5
{[%clk 0:01:45]} 58... Rb4 {[%clk 0:00:06.3]} 59. Rxa5 {[%clk 0:01:44.5]} 59...
Kf7 {[%clk 0:00:05.9]} 60. Ra7+ {[%clk 0:01:44.6]} 60... Kg8 {[%clk 0:00:06.4]}
61. f6 {[%clk 0:01:44.5]} 61... Rb5+ {[%clk 0:00:06.8]} 62. Kg6 {[%clk
0:01:44.9]} 62... Rb8 {[%clk 0:00:07.7]} 63. Rg7+ {[%clk 0:01:43.9]} 63... Kf8
{[%clk 0:00:08.2]} 64. Rh7 {[%clk 0:01:44.5]} 64... Kg8 {[%clk 0:00:08.6]} 65.
f7+ {[%clk 0:01:44.7]} 65... Kf8 {[%clk 0:00:09.5]} 66. Rh8+ {[%clk 0:01:45.6]}
66... Ke7 {[%clk 0:00:10.4]} 67. Rxb8 {[%clk 0:01:46.5]} 67... Ke6 {[%clk
0:00:11]} 68. f8=Q {[%clk 0:01:46.6]} 68... Ke5 {[%clk 0:00:11.9]} 69. Rd8
{[%clk 0:01:46.1]} 1-0

[Event "Early-Titled-Tuesday-Blitz-October-17-2023"]
[Site "Chess.com"]
[Date "2023.10.17"]
[Round "2"]
[White "MdSharifHossain"]
[Black "Kildepiotr"]
[Result "0-1"]
[WhiteElo "2198"]
[BlackElo "2637"]
[TimeControl "180+1"]
[EndTime "8:18:55 PDT"]
[Termination "Kildepiotr won by resignation"]

1. e4 {[%clk 0:03:00]} 1... g6 {[%clk 0:02:58.9]} 2. d4 {[%clk 0:02:59.7]} 2...
Bg7 {[%clk 0:02:59.4]} 3. Nc3 {[%clk 0:02:58.9]} 3... c6 {[%clk 0:02:59.8]} 4.
h4 {[%clk 0:02:54.8]} 4... h5 {[%clk 0:02:59]} 5. g3 {[%clk 0:02:51.9]} 5... d5
{[%clk 0:02:58.6]} 6. f3 {[%clk 0:02:51.8]} 6... dxe4 {[%clk 0:02:58.1]} 7. fxe4
{[%clk 0:02:48]} 7... Qxd4 {[%clk 0:02:58.1]} 8. Qxd4 {[%clk 0:02:43.3]} 8...
Bxd4 {[%clk 0:02:59]} 9. Nge2 {[%clk 0:02:44.1]} 9... Bg7 {[%clk 0:02:58.3]} 10.
Nf4 {[%clk 0:02:39.9]} 10... Nd7 {[%clk 0:02:54.9]} 11. Bc4 {[%clk 0:02:39.6]}
11... Ne5 {[%clk 0:02:54.7]} 12. Bb3 {[%clk 0:02:38.5]} 12... Nf3+ {[%clk
0:02:51.7]} 13. Kf2 {[%clk 0:02:35.4]} 13... Nd4 {[%clk 0:02:51.4]} 14. Na4
{[%clk 0:02:22.7]} 14... Nf6 {[%clk 0:02:49]} 15. Re1 {[%clk 0:01:48]} 15...
Ng4+ {[%clk 0:02:45.9]} 16. Kg2 {[%clk 0:01:45.9]} 16... Ne5 {[%clk 0:02:43.4]}
17. c3 {[%clk 0:01:40.9]} 17... Nxb3 {[%clk 0:02:43]} 18. axb3 {[%clk
0:01:41.8]} 18... Bg4 {[%clk 0:02:42.3]} 19. Nb6 {[%clk 0:01:36.4]} 19... Rb8
{[%clk 0:02:37.4]} 20. Rxa7 {[%clk 0:01:36.6]} 20... O-O {[%clk 0:02:37.6]} 21.
Be3 {[%clk 0:01:32.5]} 21... Bf3+ {[%clk 0:02:29.1]} 22. Kf2 {[%clk 0:01:19.8]}
22... Rfd8 {[%clk 0:02:17.9]} 23. Bd4 {[%clk 0:01:18.9]} 23... Bg4 {[%clk
0:02:14.2]} 24. Re3 {[%clk 0:00:57.1]} 24... c5 {[%clk 0:01:55.5]} 25. Bxe5
{[%clk 0:00:53.5]} 25... Rd2+ {[%clk 0:01:51.1]} 26. Ne2 {[%clk 0:00:47.7]}
26... Bxe5 {[%clk 0:01:50]} 27. Nc4 {[%clk 0:00:46.8]} 27... Rxe2+ {[%clk
0:01:34.5]} 28. Rxe2 {[%clk 0:00:45.7]} 28... Bxg3+ {[%clk 0:01:34.6]} 29. Kxg3
{[%clk 0:00:35.3]} 29... Bxe2 {[%clk 0:01:34.7]} 30. Ne5 {[%clk 0:00:33.6]}
30... Bb5 {[%clk 0:01:17.6]} 31. c4 {[%clk 0:00:31]} 31... Be8 {[%clk
0:01:17.4]} 32. Kf4 {[%clk 0:00:28.1]} 32... Kf8 {[%clk 0:01:14.9]} 33. Nd3
{[%clk 0:00:27.9]} 33... b6 {[%clk 0:01:14.9]} 34. Ke3 {[%clk 0:00:25.4]} 34...
Rd8 {[%clk 0:01:10.6]} 35. Nf4 {[%clk 0:00:25.1]} 35... Bc6 {[%clk 0:00:58.6]}
36. Rc7 {[%clk 0:00:24.5]} 36... Ba8 {[%clk 0:00:56.4]} 37. Nd5 {[%clk
0:00:24.5]} 37... Bxd5 {[%clk 0:00:56.1]} 38. exd5 {[%clk 0:00:23.8]} 38... Rd6
{[%clk 0:00:53.2]} 39. Rc8+ {[%clk 0:00:21.6]} 39... Kg7 {[%clk 0:00:53]} 40.
Rc6 {[%clk 0:00:21.9]} 40... Kf6 {[%clk 0:00:51.9]} 41. Ke4 {[%clk 0:00:20.5]}
41... Rxc6 {[%clk 0:00:49.6]} 42. dxc6 {[%clk 0:00:20.3]} 42... Ke6 {[%clk
0:00:50.4]} 43. b4 {[%clk 0:00:19.7]} 43... cxb4 {[%clk 0:00:43.9]} 44. Kd3
{[%clk 0:00:18.4]} 44... Kd6 {[%clk 0:00:43.8]} 45. Kc2 {[%clk 0:00:19.3]} 45...
Kxc6 {[%clk 0:00:43.8]} 46. Kb3 {[%clk 0:00:19.8]} 46... Kc5 {[%clk 0:00:44.4]}
0-1

[Event "Early-Titled-Tuesday-Blitz-October-17-2023"]
[Site "Chess.com"]
[Date "2023.10.17"]
[Round "2"]
[White "DKmirl"]
[Black "Smiechu"]
[Result "1/2-1/2"]
[WhiteElo "2282"]
[BlackElo "2500"]
[TimeControl "180+1"]
[EndTime "8:18:57 PDT"]
[Termination "Game drawn - insufficient material"]

1. d4 {[%clk 0:03:00.9]} 1... Nf6 {[%clk 0:02:52.2]} 2. Nf3 {[%clk 0:03:00.8]}
2... c5 {[%clk 0:02:51.8]} 3. g3 {[%clk 0:03:00.8]} 3... cxd4 {[%clk 0:02:51.7]}
4. Nxd4 {[%clk 0:03:00.4]} 4... Nc6 {[%clk 0:02:52.4]} 5. Bg2 {[%clk 0:02:59.5]}
5... g6 {[%clk 0:02:52.8]} 6. O-O {[%clk 0:02:59.2]} 6... Bg7 {[%clk 0:02:53.4]}
7. c4 {[%clk 0:02:59.9]} 7... O-O {[%clk 0:02:53.5]} 8. Nc3 {[%clk 0:02:58.2]}
8... d6 {[%clk 0:02:53.9]} 9. Nxc6 {[%clk 0:02:52.6]} 9... bxc6 {[%clk
0:02:54.8]} 10. Bxc6 {[%clk 0:02:52.9]} 10... Rb8 {[%clk 0:02:55.2]} 11. Bg2
{[%clk 0:02:51.6]} 11... Qa5 {[%clk 0:02:54.3]} 12. Qa4 {[%clk 0:02:33.3]} 12...
Qxa4 {[%clk 0:02:48.9]} 13. Nxa4 {[%clk 0:02:33.3]} 13... Be6 {[%clk 0:02:26.1]}
14. b3 {[%clk 0:02:16.3]} 14... Nd7 {[%clk 0:02:24.8]} 15. Bb2 {[%clk
0:02:14.2]} 15... Ne5 {[%clk 0:02:17.2]} 16. f4 {[%clk 0:01:59.6]} 16... Ng4
{[%clk 0:02:08]} 17. Bxg7 {[%clk 0:01:59.1]} 17... Kxg7 {[%clk 0:02:08.3]} 18.
Rfc1 {[%clk 0:01:57.6]} 18... Ne3 {[%clk 0:02:06.3]} 19. Kf2 {[%clk 0:01:53.1]}
19... Nxg2 {[%clk 0:02:05.9]} 20. Kxg2 {[%clk 0:01:53.8]} 20... Rfc8 {[%clk
0:02:03.7]} 21. e4 {[%clk 0:01:48.5]} 21... f5 {[%clk 0:02:02.3]} 22. exf5
{[%clk 0:01:47]} 22... Bxf5 {[%clk 0:02:02.4]} 23. Re1 {[%clk 0:01:45.2]} 23...
Kf6 {[%clk 0:02:00.4]} 24. Nc3 {[%clk 0:01:43.7]} 24... e6 {[%clk 0:01:59.1]}
25. Ne4+ {[%clk 0:01:39]} 25... Bxe4+ {[%clk 0:01:51.8]} 26. Rxe4 {[%clk
0:01:39]} 26... d5 {[%clk 0:01:52.2]} 27. cxd5 {[%clk 0:00:58.9]} 27... Rc2+
{[%clk 0:01:51.8]} 28. Kf3 {[%clk 0:00:57]} 28... exd5 {[%clk 0:01:52.1]} 29.
Re2 {[%clk 0:00:57]} 29... Rbc8 {[%clk 0:01:50.1]} 30. Rae1 {[%clk 0:00:51.7]}
30... R8c3+ {[%clk 0:01:47.5]} 31. Kf2 {[%clk 0:00:50.7]} 31... d4 {[%clk
0:01:44.6]} 32. Rd1 {[%clk 0:00:43.2]} 32... Rxe2+ {[%clk 0:01:24.8]} 33. Kxe2
{[%clk 0:00:42.9]} 33... Re3+ {[%clk 0:01:25.4]} 34. Kf2 {[%clk 0:00:41.7]}
34... Rc3 {[%clk 0:01:25.4]} 35. Rxd4 {[%clk 0:00:40.4]} 35... Rc2+ {[%clk
0:01:25.5]} 36. Kg1 {[%clk 0:00:31.3]} 36... Rxa2 {[%clk 0:01:24.3]} 37. Ra4
{[%clk 0:00:30.5]} 37... Rb2 {[%clk 0:01:24]} 38. Rxa7 {[%clk 0:00:30]} 38... h5
{[%clk 0:01:23.6]} 39. Rb7 {[%clk 0:00:28.9]} 39... Kf5 {[%clk 0:01:23.3]} 40.
h3 {[%clk 0:00:26.8]} 40... Ke4 {[%clk 0:01:19]} 41. Rc7 {[%clk 0:00:13.7]}
41... Rxb3 {[%clk 0:01:14]} 42. Kg2 {[%clk 0:00:12.2]} 42... Rb2+ {[%clk
0:01:14.1]} 43. Kg1 {[%clk 0:00:12.3]} 43... h4 {[%clk 0:01:11.7]} 44. gxh4
{[%clk 0:00:04.5]} 44... Kf3 {[%clk 0:01:06.2]} 45. Rc3+ {[%clk 0:00:03.7]}
45... Kxf4 {[%clk 0:01:04.8]} 46. Rc6 {[%clk 0:00:03.6]} 46... Kg3 {[%clk
0:01:02.6]} 47. Rxg6+ {[%clk 0:00:03.2]} 47... Kxh4 {[%clk 0:01:02.7]} 48. Rh6+
{[%clk 0:00:02]} 48... Kg3 {[%clk 0:01:02.5]} 49. Rg6+ {[%clk 0:00:02.1]} 49...
Kxh3 {[%clk 0:01:02]} 50. Rg7 {[%clk 0:00:01.6]} 50... Rb3 {[%clk 0:01:01.9]}
51. Rg8 {[%clk 0:00:01.6]} 51... Rg3+ {[%clk 0:01:02]} 52. Rxg3+ {[%clk
0:00:01.3]} 52... Kxg3 {[%clk 0:01:02.9]} 1/2-1/2